bitfinex/quotes_ETHUSD_20250131
["timestamp","ask_amount","ask_price","bid_price","bid_amount"]
[1738327137641,0.03727142,3354.0,3353.7,0.04787188]
[1738327138044,8.85,3354.1,3353.7,0.04787188]
[1738327138346,8.85,3354.1,3353.4,3.799]
[1738327138503,8.85,3354.1,3353.8,0.04831053]
[1738327138853,0.03727152,3354.0,3353.9,0.04831053]
[1738327139205,8.88727152,3354.0,3353.4,3.799]
[1738327139407,9.73872715,3354.0,3353.9,0.04831053]
[1738327139703,9.73872715,3354.0,3353.1,3.0]
[1738327139899,8.85,3354.0,3353.2,0.04827358]
[1738327140644,0.03727353,3353.9,3353.2,0.04827358]
[1738327141253,0.7811,3353.8,3353.2,0.04827358]
[1738327141553,8.85,3354.0,3353.1,3.0]
[1738327141705,8.85,3354.0,3353.2,0.04831053]
[1738327142217,8.85,3354.0,3353.4,3.7855]
[1738327142427,8.85,3354.1,3353.4,3.7855]
[1738327142602,8.85,3354.5,3353.4,3.7855]
[1738327142914,0.03727151,3354.4,3353.4,3.7855]
[1738327143240,0.03727151,3354.4,3354.0,3.0]
[1738327143241,8.85,3354.4,3354.0,3.0]
[1738327143443,8.85,3354.9,3354.1,0.7674]
[1738327143615,0.03726573,3354.8,3354.1,0.81565511]
[1738327143816,0.03726573,3354.8,3354.1,0.7674]
[1738327144149,8.85,3354.8,3354.3,3.0]
[1738327144509,8.85,3354.8,3354.4,0.04714637]
[1738327145742,8.85,3355.3,3354.4,0.04714637]
[1738327145906,1.00126038,3355.2,3354.4,0.04714637]
[1738327146309,0.964,3355.2,3354.4,0.04714637]
[1738327146612,0.03725946,3355.1,3354.4,0.04714637]
[1738327146810,0.03725959,3355.1,3354.4,0.04714637]
[1738327148112,0.03726415,3355.2,3354.4,0.04714637]
[1738327148314,0.96772641,3355.1,3354.4,0.04714637]
[1738327148551,0.03726414,3355.0,3354.4,0.04714637]
[1738327149157,8.85,3355.3,3354.4,0.04714637]
[1738327150459,8.85,3355.3,3354.7,0.7802]
[1738327150643,8.85,3355.3,3354.9,3.0]
[1738327151153,8.85,3355.3,3355.0,0.04531483]
[1738327153031,8.85,3355.3,3354.7,0.7802]
[1738327153215,8.85,3355.3,3355.1,0.04495097]
[1738327153416,8.85,3355.7,3354.7,0.7802]
[1738327153630,0.0372566,3355.6,3355.2,0.04495097]
[1738327153879,0.03725648,3355.6,3354.7,0.7802]
[1738327154060,0.03725648,3355.6,3355.3,0.04495559]
[1738327154255,0.03725648,3355.6,3354.7,0.7802]
[1738327154632,0.03725648,3355.6,3354.8,0.04495559]
[1738327154837,1.06412565,3355.5,3354.8,0.04495559]
[1738327155038,0.03725948,3355.4,3354.8,0.04495559]
[1738327157151,8.85,3355.3,3354.8,0.04495559]
[1738327157341,8.85,3355.3,3354.7,0.7802]
[1738327157544,8.85,3355.3,3354.9,3.0]
[1738327157770,8.85,3355.3,3355.0,0.04454938]
[1738327158842,0.0075,3355.0,3352.9,2.7025328]
[1738327159047,0.5575,3354.5,3353.0,0.7986]
[1738327159264,0.03727786,3354.5,3353.1,0.0197907]
[1738327159440,0.58727786,3354.5,3353.0,4.14871328]
[1738327159643,0.58727786,3354.5,3353.0,1.14871328]
[1738327159990,0.58727786,3354.5,3353.0,4.14871328]
[1738327160483,0.58727786,3354.5,3353.0,1.14871328]
[1738327160638,0.15562779,3354.4,3353.0,1.14871328]
[1738327160840,0.7669,3354.2,3353.0,0.7986]
[1738327161052,8.88727588,3354.1,3353.0,0.7986]
[1738327161255,8.85,3354.1,3353.0,0.7986]
[1738327161452,0.96169,3354.0,3353.0,0.7986]
[1738327161670,0.03727782,3353.9,3353.0,0.7986]
[1738327162794,0.03727782,3353.9,3353.0,3.7986]
[1738327162973,8.85,3354.1,3353.2,2.7025328]
[1738327163169,8.85,3354.1,3353.3,3.0]
[1738327163376,8.85,3354.1,3353.4,0.57025328]
[1738327163699,8.85,3354.1,3353.3,3.0]
[1738327165603,8.85,3354.9,3354.0,2.7025328]
[1738327165816,6.14,3356.3,3354.9,3.0]
[1738327165817,0.79,3355.6,3354.9,3.0]
[1738327165956,8.85,3355.5,3354.9,3.77254911]
[1738327166157,8.85,3355.9,3355.2,3.0]
[1738327166485,9.735,3355.9,3355.3,0.03341411]
[1738327166861,8.85,3356.9,3355.9,3.0]
[1738327167199,5.35,3358.1,3356.5,3.0]
[1738327167200,8.85,3357.1,3356.5,3.0]
[1738327167504,0.885,3357.0,3356.5,3.0]
[1738327167715,0.03723668,3357.4,3356.5,3.0]
[1738327167876,0.03723668,3357.4,3356.6,0.03341411]
[1738327168265,8.85,3357.5,3356.6,0.03341411]
[1738327168461,0.03723876,3357.4,3356.6,0.03341411]
[1738327168688,0.03723876,3357.4,3356.2,3.7584]
[1738327169002,0.96772388,3357.3,3356.3,0.03275061]
[1738327169202,0.03724163,3357.2,3356.3,0.03275061]
[1738327169721,0.96772388,3357.3,3356.3,0.03275061]
[1738327170047,8.88724161,3357.2,3356.3,0.03275061]
[1738327170192,8.85,3357.2,3356.3,0.03275061]
[1738327170386,1.01901754,3357.1,3355.8,3.8332]
[1738327170690,0.79,3356.9,3355.9,0.03210552]
[1738327170901,0.03724518,3356.8,3355.9,0.03210552]
[1738327171205,0.03724518,3356.8,3355.8,0.8332]
[1738327171403,0.96772452,3356.7,3355.8,3.8332]
[1738327171631,0.03724748,3356.6,3355.8,3.8332]
[1738327171939,0.96772452,3356.7,3355.9,0.03210552]
[1738327172116,0.03724433,3356.6,3355.9,0.03210552]
[1738327173430,0.96772452,3356.7,3355.9,0.03210552]
[1738327173810,0.17577245,3356.6,3355.9,0.03210552]
[1738327174131,0.21301729,3356.6,3355.9,0.03210552]
[1738327174425,0.17577245,3356.6,3355.9,0.03210552]
[1738327174629,0.213019,3356.6,3355.9,0.03210552]
[1738327174929,8.85,3356.5,3355.9,0.03210552]
[1738327175138,0.03724654,3356.4,3355.9,0.03210552]
[1738327175292,8.85,3356.3,3355.9,0.03210552]
[1738327175628,8.85,3356.3,3356.0,0.03222989]
[1738327176004,8.85,3356.3,3355.8,0.8332]
[1738327176005,8.85,3356.3,3355.8,3.85293001]
[1738327176315,8.85,3356.3,3355.9,0.03222989]
[1738327176626,8.85,3356.3,3356.0,0.73616658]
[1738327176802,8.85,3356.3,3356.0,0.76839647]
[1738327177001,8.83303385,3356.3,3356.0,0.76839647]
[1738327177392,8.83303385,3357.2,3356.2,3.7836]
[1738327177596,8.83303385,3357.1,3356.3,0.0197116]
[1738327177923,8.83303385,3357.1,3356.2,3.7836]
[1738327178131,8.83303385,3357.1,3356.3,0.01971514]
[1738327178286,8.83303385,3357.1,3356.5,0.771]
[1738327178491,8.83303385,3357.1,3356.5,0.79070646]
[1738327178686,8.83303385,3357.1,3356.6,0.03222989]
[1738327179233,8.83303385,3357.1,3356.7,0.01970646]
[1738327179924,8.83303385,3357.1,3356.8,0.03222989]
[1738327180292,8.83303385,3357.1,3356.7,0.01970658]
[1738327180495,8.83303385,3357.1,3356.7,0.17157545]
[1738327180695,8.83303385,3357.1,3356.8,0.03222989]
[1738327181107,8.83303385,3357.9,3356.7,0.17157545]
[1738327181429,8.83303385,3357.8,3357.0,0.771]
[1738327182128,8.83303385,3357.8,3357.1,0.03222989]
[1738327184030,8.83303385,3357.9,3357.1,0.05193136]
[1738327184225,8.83303385,3358.3,3357.2,0.7999]
[1738327184404,8.83303385,3358.3,3357.4,3.0]
[1738327184593,8.83303385,3358.2,3357.6,0.7999]
[1738327185003,8.83303385,3358.2,3357.7,0.03124905]
[1738327186937,0.03722453,3358.1,3357.7,0.03124905]
[1738327187348,9.71633723,3358.2,3357.7,0.03124905]
[1738327187349,8.83303385,3358.0,3357.8,0.827]
[1738327189541,8.83303385,3358.0,3357.2,0.7572]
[1738327189841,0.03722836,3357.9,3357.3,0.03108797]
[1738327190047,8.87026221,3357.9,3357.3,0.03108797]
[1738327190194,8.83303385,3357.9,3357.2,0.7572]
[1738327190395,8.83303385,3357.9,3357.3,0.05078165]
[1738327190726,8.83303385,3357.9,3357.2,0.7572]
[1738327191236,8.83303385,3357.9,3357.3,0.03108797]
[1738327191393,8.83303385,3357.8,3357.4,0.8018]
[1738327191593,8.83303385,3357.8,3357.5,0.05080854]
[1738327193628,8.83303385,3357.8,3357.5,0.03112018]
[1738327194432,8.83303385,3357.8,3357.4,0.8018]
[1738327195909,8.83303385,3358.6,3357.4,0.8018]
[1738327196215,1.34717971,3358.5,3357.4,0.8018]
[1738327196725,2.69922176,3358.3,3357.4,0.8018]
[1738327196934,0.03722827,3358.2,3357.4,0.8018]
[1738327197549,0.03722827,3358.2,3356.8,0.8122]
[1738327197550,2.69922176,3358.0,3356.8,0.8122]
[1738327197711,3.85617015,3358.0,3356.9,0.39640689]
[1738327197906,0.03723225,3357.9,3356.9,0.02885731]
[1738327198106,9.60323385,3357.8,3356.8,0.8122]
[1738327198363,0.03723491,3357.7,3356.8,0.8122]
[1738327198705,9.60323385,3357.8,3356.9,0.02885731]
[1738327199134,8.83303385,3357.8,3356.9,0.04856039]
[1738327199349,8.83303385,3357.8,3356.9,0.02885731]
[1738327199817,0.03723013,3357.7,3356.9,0.41296304]
[1738327200025,8.83303385,3357.8,3356.9,0.02885731]
[1738327200702,0.03723422,3357.7,3356.9,0.02885731]
[1738327201108,8.83303385,3357.8,3356.9,0.02885731]
[1738327201344,8.83303385,3357.8,3356.9,0.04856265]
[1738327201509,0.03723419,3357.7,3356.9,0.02885731]
[1738327201709,8.83303385,3357.6,3356.9,0.02885731]
[1738327202064,0.79,3358.2,3356.9,0.02885731]
[1738327202065,8.83303385,3357.5,3357.2,3.0]
[1738327202244,8.83303385,3357.5,3357.3,0.65070218]
[1738327202406,8.83303385,3357.5,3357.3,0.02842303]
[1738327202603,8.83303385,3357.5,3357.1,0.01969488]
[1738327202806,8.83303385,3357.5,3357.2,0.02842303]
[1738327203554,0.03722994,3357.4,3357.2,0.02842303]
[1738327203859,8.83303385,3357.5,3357.0,0.8078]
[1738327204570,8.83303385,3357.5,3357.1,0.02842303]
[1738327205069,8.83303385,3357.5,3355.6,1.79]
[1738327205370,0.1,3357.3,3356.8,2.69922176]
[1738327205524,8.93303385,3357.3,3356.8,2.69922176]
[1738327207043,0.1,3357.3,3356.8,2.69922176]
[1738327207242,8.93303385,3357.5,3356.9,0.01970313]
[1738327207454,8.83303385,3357.5,3356.9,0.01970313]
[1738327207661,8.83303385,3357.5,3357.1,2.69922176]
[1738327207830,0.1,3357.4,3357.2,3.0]
[1738327208027,0.1,3357.4,3356.9,3.0]
[1738327208227,0.1,3357.4,3356.9,3.8267]
[1738327209277,0.1,3357.2,3356.9,0.8267]
[1738327209422,0.1,3357.2,3356.6,0.85030534]
[1738327209775,9.59833385,3357.5,3357.1,2.69922176]
[1738327209776,8.83303385,3357.5,3357.1,2.69922176]
[1738327210013,8.83303385,3357.5,3357.2,3.01969495]
[1738327210176,8.83303385,3357.5,3357.4,5.69922176]
[1738327210477,8.83303385,3357.5,3357.4,6.52982176]
[1738327210777,8.93303385,3358.0,3357.5,3.0]
[1738327210981,8.93303385,3358.0,3357.5,0.01968818]
[1738327211277,8.83303385,3358.0,3357.5,0.01968818]
[1738327211429,8.93303385,3358.0,3357.5,0.0196882]
[1738327211838,8.93303385,3358.0,3357.4,0.8306]
[1738327212085,9.84633723,3358.0,3357.4,0.8306]
[1738327212378,0.1,3357.3,3356.6,0.8286]
[1738327212588,9.13303385,3357.3,3356.6,0.8286]
[1738327212740,9.13303385,3357.3,3356.6,0.8483053]
[1738327212946,9.13303385,3357.3,3356.6,1.20305801]
[1738327213133,9.13303385,3357.3,3356.6,3.8286]
[1738327213536,9.13303385,3357.3,3356.6,0.8286]
[1738327213773,0.7918,3357.6,3356.2,2.99772176]
[1738327213774,0.1,3356.8,3356.2,2.99772176]
[1738327213969,0.1,3356.6,3356.2,2.69922176]
[1738327214836,0.1,3356.6,3356.3,3.0]
[1738327215031,8.83303385,3356.7,3356.4,0.56992218]
[1738327215347,8.83303385,3356.7,3356.6,3.0]
[1738327215789,8.83303385,3356.7,3356.3,3.0]
[1738327216578,0.1,3356.6,3356.3,3.0]
[1738327216987,8.83303385,3356.7,3356.3,3.0]
[1738327217287,8.83303385,3356.7,3356.3,3.65037391]
[1738327218286,0.3,3356.8,3356.3,3.65037391]
[1738327218439,8.83303385,3357.7,3356.6,3.0]
[1738327218639,8.83303385,3357.6,3357.3,3.0]
[1738327218877,0.3,3357.6,3357.3,3.0]
[1738327219372,0.2,3357.6,3357.3,3.0]
[1738327219893,0.2,3358.0,3357.3,3.66825285]
[1738327220546,0.2,3358.0,3357.6,3.0]
[1738327220752,0.2,3358.0,3357.6,3.01968367]
[1738327221672,0.2,3358.0,3357.6,3.01968357]
[1738327221875,0.1,3357.9,3357.3,3.64856218]
[1738327222040,0.1,3357.9,3357.6,2.69922176]
[1738327223578,0.3,3357.7,3357.3,2.69922176]
[1738327223781,0.1,3357.5,3357.3,2.69922176]
[1738327223981,0.2,3357.4,3357.3,2.69922176]
[1738327224481,9.03303385,3357.4,3357.0,2.69922176]
[1738327224684,0.1,3357.1,3357.0,2.69922176]
[1738327225057,0.1,3357.1,3357.0,5.69922176]
[1738327226611,0.2,3356.8,3356.7,2.69922176]
[1738327226771,9.03303385,3356.8,3356.5,3.0]
[1738327226977,9.03303385,3356.8,3356.4,2.69922176]
[1738327227177,0.1,3356.7,3356.5,3.0]
[1738327227720,0.1,3356.7,3355.8,0.0075]
[1738327227721,0.1,3355.9,3355.8,2.69922176]
[1738327227885,0.1,3355.9,3355.8,5.69922176]
[1738327228584,0.3,3355.9,3355.8,2.69922176]
[1738327229182,0.2,3355.9,3355.8,2.69922176]
[1738327229534,0.1,3355.9,3355.8,2.69922176]
[1738327229820,0.3,3355.9,3355.8,2.69922176]
[1738327230517,0.1,3355.6,3355.5,2.69922176]
[1738327230816,0.3,3355.6,3355.5,2.69922176]
[1738327231019,0.2,3355.6,3355.5,2.69922176]
[1738327231335,0.2,3355.8,3355.5,2.69922176]
[1738327231630,0.2,3355.6,3355.5,2.69922176]
[1738327231833,0.2,3355.8,3355.5,2.69922176]
[1738327232530,0.1,3355.9,3355.5,2.69922176]
[1738327232531,0.2,3355.6,3355.5,2.69922176]
[1738327232969,0.2,3355.8,3355.5,2.69922176]
[1738327233338,0.2,3355.8,3355.6,3.0]
[1738327233534,0.2,3356.5,3355.7,1.3754554]
[1738327233769,0.3,3356.7,3356.5,3.0]
[1738327233975,0.1,3356.9,3356.5,0.80551283]
[1738327234137,0.1,3356.9,3356.8,2.69922176]
[1738327234558,0.3,3356.9,3356.8,5.69922176]
[1738327234959,8.83303385,3357.0,3356.8,5.69922176]
[1738327235129,0.2,3357.1,3356.9,3.0]
[1738327235473,0.2,3357.1,3356.8,2.69922176]
[1738327235767,0.3,3357.5,3356.9,0.01970311]
[1738327235982,0.3,3357.5,3357.2,3.0]
[1738327236118,0.2,3357.3,3357.2,3.0]
[1738327236678,0.2,3357.3,3357.1,3.0]
[1738327238565,0.2,3357.1,3357.0,3.47496534]
[1738327238771,0.2,3357.1,3356.6,3.47496534]
[1738327238772,0.1,3356.7,3356.6,3.47496534]
[1738327238938,0.1,3356.4,3356.3,3.47496534]
[1738327239138,9.13303385,3356.4,3356.3,3.47496534]
[1738327239556,9.13303385,3356.4,3356.3,3.54893951]
[1738327240125,9.13303385,3356.4,3356.3,0.07397417]
[1738327240349,0.2,3356.1,3356.0,3.47496534]
[1738327240544,9.03303385,3356.1,3356.0,3.47496534]
[1738327241005,9.13303385,3356.1,3356.0,3.47496534]
[1738327242302,9.03303385,3356.1,3356.0,3.47496534]
[1738327242491,9.13303385,3356.1,3356.0,3.47496534]
[1738327242795,9.13303385,3356.1,3356.0,3.54893951]
[1738327243096,9.13303385,3356.1,3356.0,3.54650893]
[1738327244589,10.04633724,3356.1,3356.0,3.54650893]
[1738327244761,9.13303385,3356.1,3356.0,3.54650893]
[1738327245649,9.90103385,3356.1,3356.0,3.54650893]
[1738327245848,9.90103385,3356.1,3356.0,0.07397417]
[1738327246297,0.3,3355.7,3355.6,3.47496534]
[1738327246464,9.13303385,3355.7,3355.6,3.47496534]
[1738327247781,9.03303385,3355.7,3355.6,6.47496534]
[1738327247983,8.83303385,3355.7,3355.6,6.47496534]
[1738327249184,8.83303385,3355.7,3355.6,7.91736187]
[1738327251553,8.83303385,3355.7,3355.6,7.93236187]
[1738327252389,0.2,3356.4,3355.7,0.0075]
[1738327252589,0.2,3356.4,3356.3,6.47496534]
[1738327252775,0.2,3356.4,3356.3,3.47496534]
[1738327255604,8.83303385,3356.8,3356.3,3.47496534]
[1738327255605,0.2,3356.6,3356.3,3.47496534]
[1738327255789,0.2,3356.6,3356.3,4.62066187]
[1738327256098,0.2,3356.6,3356.3,4.27316534]
[1738327256297,0.2,3356.6,3356.4,0.0197134]
[1738327256505,0.2,3356.6,3356.3,4.27316534]
[1738327256666,0.2,3356.6,3356.3,3.47496534]
[1738327256869,0.1,3356.5,3356.4,3.0]
[1738327258560,0.8958,3356.5,3356.3,2.70029586]
[1738327258793,0.2,3356.4,3356.3,2.70029586]
[1738327259453,0.3,3356.2,3356.1,3.0]
[1738327259658,1.14542809,3356.2,3356.0,2.70029586]
[1738327260283,1.14542809,3356.2,3356.1,0.07259493]
[1738327260680,0.1,3356.1,3356.0,2.70029586]
[1738327260991,0.2,3356.2,3356.0,2.70029586]
[1738327261197,0.1,3356.1,3356.0,2.70029586]
[1738327264205,8.93303385,3356.1,3356.0,2.70029586]
[1738327264407,9.84633723,3356.1,3356.0,2.70029586]
[1738327265402,9.84633723,3356.1,3355.7,2.70029586]
[1738327265610,0.2,3355.5,3355.4,2.70029586]
[1738327265798,0.3,3355.5,3355.4,2.70029586]
[1738327265998,0.3,3355.5,3355.4,5.70029586]
[1738327266180,9.13303385,3355.5,3355.4,2.70029586]
[1738327266505,0.2,3355.2,3354.6,0.812]
[1738327266741,0.2,3355.6,3355.4,0.07259493]
[1738327266880,0.2,3355.6,3354.9,0.01973825]
[1738327267730,0.2,3355.6,3355.0,0.7905]
[1738327268014,0.2,3355.6,3355.5,5.70029586]
[1738327268729,0.3,3355.6,3355.5,5.77369099]
[1738327269096,1.21330339,3355.6,3355.5,0.07339513]
[1738327269482,0.3,3355.4,3355.3,3.0]
[1738327270016,0.3,3355.4,3355.2,2.70029586]
[1738327270194,9.13303385,3355.4,3355.2,2.70029586]
[1738327270522,0.3,3355.0,3354.9,2.70029586]
[1738327270884,0.3,3355.0,3354.9,5.70029586]
[1738327272918,0.1,3354.7,3354.6,2.70029586]
[1738327273103,0.3,3354.7,3354.6,2.70029586]
[1738327274521,0.3,3354.7,3354.6,2.65029586]
[1738327274701,0.2,3354.7,3354.6,5.65029586]
[1738327275199,0.2,3354.7,3354.6,5.72407307]
[1738327275417,9.13303385,3354.9,3354.7,3.0]
[1738327275610,9.13303385,3354.9,3354.6,2.72407307]
[1738327275811,9.13303385,3354.9,3354.6,2.65029586]
[1738327276012,0.3,3354.9,3354.7,3.07377721]
[1738327277237,0.2,3354.9,3354.7,3.07377721]
[1738327277432,0.3,3354.9,3354.7,3.07377721]
[1738327278339,2.04802916,3354.9,3354.7,3.07377721]
[1738327278942,2.04802916,3354.9,3354.7,0.07377721]
[1738327279088,2.04802916,3354.9,3354.3,2.70029586]
[1738327279298,0.28861672,3354.4,3354.3,2.70029586]
[1738327281009,0.18861672,3354.4,3354.3,2.70029586]
[1738327283197,0.28861672,3354.6,3354.3,5.70029586]
[1738327283399,0.18861672,3354.6,3354.4,3.8225]
[1738327283598,0.1,3354.9,3354.4,3.8225]
[1738327283599,0.28861672,3354.9,3354.5,0.01975906]
[1738327283800,0.28861672,3354.9,3354.8,5.70029586]
[1738327285568,0.28861672,3354.9,3354.5,2.70029586]
[1738327285971,0.18861672,3354.6,3354.5,5.70029586]
[1738327286529,0.28861672,3354.6,3354.5,5.70029586]
[1738327289526,0.1,3354.3,3354.2,2.70029586]
[1738327289732,0.28861672,3354.0,3353.9,2.70029586]
[1738327290126,9.12165057,3354.0,3353.9,2.77206315]
[1738327290459,10.84941563,3354.0,3353.9,0.07176729]
[1738327290834,0.18861672,3353.4,3353.2,2.70029586]
[1738327291029,0.1,3353.3,3353.2,2.70029586]
[1738327292549,0.1,3353.3,3353.2,5.70029586]
[1738327292733,8.93303385,3353.3,3353.2,5.70029586]
[1738327295057,8.93303385,3353.3,3353.2,2.70029586]
[1738327297692,0.18861672,3352.4,3352.2,0.7744]
[1738327297914,0.18861672,3352.4,3352.2,0.79420223]
[1738327298218,0.18861672,3352.4,3352.3,0.0722081]
[1738327298421,0.18861672,3352.4,3352.3,5.70029586]
[1738327298708,0.18861672,3352.4,3352.3,5.77250396]
[1738327298903,9.02165057,3352.4,3352.3,2.77250396]
[1738327301282,8.83303385,3352.4,3352.3,5.77250396]
[1738327301515,0.18861672,3352.6,3352.4,3.0]
[1738327301675,0.18861672,3352.6,3352.3,3.35173497]
[1738327301881,0.18861672,3352.6,3352.5,0.07099666]
[1738327302077,0.18861672,3352.6,3352.4,3.01979847]
[1738327302269,0.18861672,3352.6,3352.5,0.07099666]
[1738327303315,0.1,3352.9,3352.5,0.84249666]
[1738327303316,0.18861672,3352.8,3352.5,0.84249666]
[1738327303466,0.18861672,3352.8,3352.7,5.70029586]
[1738327303814,0.18861672,3352.8,3352.7,5.77115179]
[1738327304218,0.18861672,3353.0,3352.8,3.0]
[1738327304386,0.28861672,3353.2,3352.8,3.01979273]
[1738327304569,0.28861672,3353.2,3353.1,5.70029586]
[1738327305266,0.28861672,3353.2,3353.1,5.77114271]
[1738327306426,1.10761672,3353.2,3353.1,3.07084685]
[1738327306615,1.10761672,3353.2,3353.1,0.07084685]
[1738327306818,0.18861672,3352.9,3352.8,2.70029586]
[1738327306976,0.18861672,3352.9,3352.8,5.70029586]
[1738327307176,0.28861672,3352.9,3352.8,2.70029586]
[1738327309576,0.18861672,3352.9,3352.8,2.70029586]
[1738327309812,9.02165057,3353.1,3352.9,3.7634]
[1738327310032,0.1,3353.0,3352.9,3.7634]
[1738327311175,0.1,3353.0,3352.9,3.0]
[1738327312327,0.18861672,3352.9,3352.8,2.70029586]
[1738327312507,0.18861672,3352.9,3352.8,5.70029586]
[1738327314631,0.18861672,3352.9,3352.8,2.70029586]
[1738327314837,0.18861672,3352.6,3352.5,2.70029586]
[1738327315512,0.28861672,3352.6,3352.5,5.70029586]
[1738327318742,0.1,3352.6,3352.5,5.72009651]
[1738327319046,0.28861672,3352.6,3352.5,5.72009651]
[1738327319415,0.1,3352.6,3352.5,5.72009651]
[1738327319625,0.28861672,3352.6,3352.5,5.72009651]
[1738327320149,8.83303385,3353.0,3352.6,3.0]
[1738327320445,8.83303385,3353.0,3352.9,5.70029586]
[1738327320645,0.28861672,3353.1,3353.0,3.0]
[1738327320946,0.28861672,3353.1,3352.9,2.76851331]
[1738327321149,0.28861672,3353.1,3352.9,2.70029586]
[1738327321354,0.28861672,3353.1,3353.0,0.06820837]
[1738327321722,0.28861672,3353.1,3352.9,2.70029586]
[1738327322035,0.28861672,3353.1,3353.0,0.06820837]
[1738327322239,0.28861672,3353.1,3352.9,2.70029586]
[1738327322555,0.28861672,3353.1,3353.0,0.06810398]
[1738327322904,0.18861672,3352.8,3352.7,3.0]
[1738327323213,0.28861672,3352.8,3352.7,3.0]
[1738327324370,0.1,3352.4,3352.3,2.70029586]
[1738327324925,0.1,3352.4,3352.3,5.70029586]
[1738327325869,0.1,3352.4,3352.3,2.70029586]
[1738327328360,0.807,3352.7,3351.8,0.8219]
[1738327328361,0.28861672,3352.2,3352.1,3.0]
[1738327328561,0.28861672,3352.2,3351.7,2.70029586]
[1738327329091,0.28861672,3351.3,3350.8,2.70029586]
[1738327329262,0.18861672,3350.4,3350.2,2.70029586]
[1738327329586,0.18861672,3350.4,3348.8,2.70029586]
[1738327329587,0.1,3350.1,3350.0,0.7526]
[1738327329789,0.1,3350.1,3349.9,2.70029586]
[1738327330349,0.18861672,3350.0,3349.9,2.70029586]
[1738327330649,0.18861672,3349.6,3349.3,2.70029586]
[1738327330847,0.18861672,3349.6,3349.1,0.32990064]
[1738327330848,0.18861672,3349.6,3349.5,6.94995164]
[1738327331047,0.28861672,3349.9,3349.5,3.51301521]
[1738327331248,0.28861672,3349.9,3349.8,5.70029586]
[1738327331463,0.28861672,3349.9,3349.5,2.70029586]
[1738327331664,0.1,3349.7,3349.6,0.01986262]
[1738327331876,0.28861672,3349.9,3349.6,0.01986262]
[1738327332080,0.28861672,3349.9,3349.8,2.70029586]
[1738327333405,0.1,3349.9,3349.8,2.72015603]
[1738327333697,0.1,3349.9,3349.8,2.70029586]
[1738327333698,0.28861672,3349.9,3349.8,2.70029586]
[1738327334394,0.28861672,3349.9,3349.6,3.0]
[1738327334610,0.1,3349.8,3349.6,3.01986473]
[1738327334777,0.1,3349.8,3349.6,3.0]
[1738327335184,0.18861672,3349.7,3349.6,3.0]
[1738327335488,0.18861672,3349.7,3349.5,2.70029586]
[1738327335694,0.1,3349.6,3349.5,2.70029586]
[1738327336279,0.1,3349.6,3349.5,5.70029586]
[1738327336484,0.1,3349.6,3349.5,3.0]
[1738327336908,0.28861672,3349.1,3349.0,0.66666667]
[1738327337090,9.12165057,3349.1,3349.0,0.66666667]
[1738327339113,9.94095057,3349.1,3349.0,0.66666667]
[1738327340392,10.49095057,3349.1,3349.0,0.66666667]
[1738327340599,11.54004563,3349.1,3349.0,0.66666667]
[1738327341330,11.50844563,3349.1,3349.0,0.66666667]
[1738327342121,14.20124149,3349.1,3349.0,0.66666667]
[1738327342320,11.50094563,3349.1,3349.0,0.66666667]
[1738327342722,11.50844563,3349.1,3349.0,0.66666667]
[1738327342919,11.51594563,3349.1,3349.0,0.66666667]
[1738327343323,14.21624149,3349.1,3349.0,0.66666667]
[1738327344387,14.21624149,3349.1,3349.0,0.33333333]
[1738327344635,17.21624149,3349.1,3349.0,0.126872]
[1738327345150,17.21624149,3349.1,3346.7,2.70029586]
[1738327345151,0.28861672,3346.8,3346.7,2.70029586]
[1738327345294,0.28861672,3346.5,3346.4,0.1696786]
[1738327345758,0.18861672,3346.5,3346.4,3.66817446]
[1738327345929,0.18861672,3346.5,3346.4,4.03499191]
[1738327346132,0.18861672,3346.5,3346.4,3.66817446]
[1738327346505,0.18861672,3346.5,3346.4,0.1696786]
[1738327346704,0.22597124,3346.5,3346.4,0.1696786]
[1738327347048,0.1,3347.3,3346.7,0.7976]
[1738327347208,0.1,3347.5,3347.3,3.0]
[1738327347534,0.1,3348.0,3347.5,3.0]
[1738327347740,0.1,3348.1,3348.0,3.0]
[1738327347904,0.1,3348.1,3348.0,2.73015982]
[1738327348490,0.7834,3349.2,3348.0,3.52318778]
[1738327348491,0.1,3348.3,3348.0,3.52318778]
[1738327348718,0.1,3348.3,3348.1,0.7533]
[1738327348926,0.1,3348.3,3348.1,4.26027939]
[1738327349091,0.1,3348.3,3348.1,5.23829567]
[1738327349287,0.1,3348.3,3348.1,4.29014293]
[1738327350248,0.1,3348.3,3348.2,0.06335132]
[1738327350768,0.1,3348.5,3348.2,0.06335132]
[1738327350956,0.1,3348.5,3348.3,0.81454297]
[1738327351446,0.1,3348.5,3348.4,6.55667514]
[1738327351753,0.1,3348.7,3348.4,3.55667514]
[1738327351946,0.1,3348.7,3348.5,0.02985964]
[1738327352111,0.1,3348.7,3348.5,3.7669813]
[1738327352513,0.1,3348.7,3348.6,0.06335132]
[1738327353646,0.1,3348.2,3348.1,4.26027939]
[1738327353806,0.1,3348.2,3348.1,3.7533]
[1738327354204,0.1,3347.8,3347.6,3.49332382]
[1738327354446,0.1,3347.3,3347.2,4.31942382]
[1738327355749,0.1,3347.3,3347.2,7.31942382]
[1738327356509,0.1,3347.3,3347.2,6.49332382]
[1738327356741,0.1,3347.3,3346.8,4.31032382]
[1738327356946,0.1,3346.9,3346.8,3.49332382]
[1738327357148,0.1,3346.9,3346.8,6.49332382]
[1738327357646,0.1,3347.3,3346.9,3.0]
[1738327357852,0.1,3347.3,3347.2,6.49332382]
[1738327358208,0.1,3347.6,3347.2,4.31032382]
[1738327358408,9.38303385,3348.6,3347.2,4.31032382]
[1738327358409,0.1,3347.7,3347.3,0.02987115]
[1738327358652,0.1,3347.7,3347.6,6.49332382]
[1738327358816,0.9758,3348.7,3347.6,3.49332382]
[1738327358817,0.1,3347.9,3347.6,3.49332382]
[1738327359011,0.1,3347.9,3347.7,0.02986735]
[1738327359245,0.1,3347.9,3347.7,3.0]
[1738327359613,0.1,3348.2,3347.7,3.67919977]